fUSD/lending_fUSD_20240222
["ID","MTS","AMOUNT","RATE_DAILY","PERIOD"]
[314861464,1708599032229,-566.27,0.00033779,2]
[314861465,1708599032238,-150.0,0.00033888,2]
[314861466,1708599032248,-150.0,0.00033892,2]
[314861467,1708599032258,-1948.0,0.00034,2]
[314861468,1708599032267,-200.0,0.00034058,2]
[314861469,1708599032277,-150.0,0.00034067,2]
[314861470,1708599032286,-156.73362054,0.00034095,3]
[314861471,1708599032296,-5000.0,0.000341,3]
[314861472,1708599032305,-383.09,0.00034124,2]
[314861473,1708599032315,-155.0,0.00034162,2]
[314861474,1708599032325,-211.8,0.00034259,2]
[314861475,1708599032336,-164.5,0.00034337,2]
[314861476,1708599032345,-150.0,0.00034348,2]
[314861477,1708599032355,-232.66767466,0.00034374,4]
[314861478,1708599032365,-1500.0,0.00034379,2]
[314861479,1708599032375,-2424.64722219,0.00034421,2]
[314861480,1708599032384,-8076.79122232,0.00034464,2]
[314861481,1708599032394,-150.0,0.000345,2]
[314861482,1708599032403,-150.0,0.00034505,2]
[314861483,1708599032412,-4114.744979,0.0003452,2]
[314861484,1708599032421,-737.06,0.00034521,2]
[314861485,1708599032431,-152.0,0.00034544,4]
[314861486,1708599032440,-177.69,0.000346,2]
[314861487,1708599032451,-150.6238046,0.000346,2]
[314861488,1708599032461,-259.27,0.000346,7]
[314861489,1708599032470,-502.76880153,0.000346,2]
[314861490,1708599032479,-372.97369746,0.00034637,8]
[314861491,1708599032489,-150.0,0.00034663,2]
[314861492,1708599032498,-575.29335002,0.0003469,2]
[314861493,1708599032508,-589560.4,0.000347,2]
[314861494,1708599032517,-372.97369744,0.00034719,8]
[314861495,1708599032526,-263.48475118,0.00034737,7]
[314861496,1708599032535,-150.0,0.00034785,2]
[314861497,1708599032545,-6172.117468,0.00034794,2]
[314861498,1708599032555,-150.0,0.00034798,2]
[314861499,1708599032564,-2424.64722219,0.000348,2]
[314861500,1708599032574,-15129.0,0.000348,2]
[314861501,1708599032583,-273.1703861,0.000348,7]
[314861502,1708599032593,-1400.73,0.000348,30]
[314861503,1708599032602,-3953.98994496,0.000348,2]
[314861504,1708599032611,-372.97369744,0.000348,8]
[314861505,1708599032621,-338.08909729,0.000348,2]
[314861506,1708599032630,-150.0,0.00034801,2]
[314861507,1708599032640,-575.29335002,0.0003489,2]
[314861508,1708599032649,-1018.29,0.00034893,2]
[314861509,1708599032659,-151.022219,0.00034898,2]
[314861510,1708599032669,-151.022219,0.00034898,2]
[314861511,1708599032679,-151.022219,0.00034898,2]
[314861512,1708599032689,-173.022219,0.00034898,2]
[314861513,1708599032699,-173.022219,0.00034898,2]
[314861514,1708599032710,-173.022219,0.00034898,2]
[314861515,1708599032720,-173.022219,0.00034898,2]
[314861516,1708599032729,-1729.98047547,0.00034899,2]
[314861517,1708599032739,-279.0,0.000349,8]
[314861518,1708599032749,-647934.924733,0.000349,2]
[314861519,1708599032758,-2962.35998129,0.000349,2]
[314861520,1708599032767,-1500.0,0.000349,4]
[314861521,1708599032777,-8229.489958,0.00034931,2]
[314861522,1708599032786,-172.78716963,0.00035,5]
[314861523,1708599032796,-12580.0,0.00035,2]
[314861524,1708599032806,-586.79552556,0.00035,4]
[314861525,1708599032815,-2800.00000001,0.00035,2]
[314861526,1708599032824,-66178.15763256,0.00035,7]
[314861527,1708599032834,-193.48672376,0.00035,2]
[314861528,1708599032844,-150.0,0.00035048,2]
[314861529,1708599032853,-273.17038603,0.00035059,7]
[314861530,1708599032862,-152.210405,0.00035062,2]
[314861531,1708599032876,-362.59324051,0.00035062,2]
[314861532,1708599032885,-851.66344258,0.00035062,7]
[314861533,1708599032895,-10286.862448,0.00035068,2]
[314861534,1708599032904,-1018.29,0.00035076,2]
[314861535,1708599032914,-2488.0,0.000351,2]
[314861536,1708599032923,-1017.14,0.00035114,2]
[314861537,1708599032934,-177.69,0.00035148,2]
[314861538,1708599032946,-151.022219,0.00035156,2]
[314861539,1708599032966,-151.022219,0.00035156,2]
[314861540,1708599032976,-151.022219,0.00035156,2]
[314861541,1708599032986,-151.022219,0.00035156,2]
[314861542,1708599032995,-151.022219,0.00035156,2]
[314861543,1708599033004,-150.0,0.00035159,2]
[314861544,1708599033014,-851.66344248,0.00035203,7]
[314861545,1708599033023,-150.0,0.00035205,2]
[314861546,1708599033032,-150.960583,0.00035213,2]
[314861547,1708599033041,-318.405165,0.00035213,2]
[314861548,1708599033051,-1018.29,0.0003526,2]
[314861549,1708599033060,-15203.73383371,0.0003526,4]
[314861550,1708599033070,-321.68893254,0.00035261,30]
[314861551,1708599033080,-321.68893254,0.00035261,30]
[314861552,1708599033089,-303.57532977,0.00035261,30]
[314861553,1708599033099,-3763.46489877,0.00035261,2]
[314861554,1708599033109,-428.50363363,0.00035262,2]
[314861555,1708599033118,-154.87,0.00035295,2]
[314861556,1708599033128,-362.59324051,0.00035311,2]
[314861557,1708599033137,-152.21040494,0.00035316,2]
[314861558,1708599033146,-273.17038603,0.00035318,7]
[314861559,1708599033156,-14401.607427,0.00035342,2]
[314861560,1708599033166,-150.0,0.00035342,2]
[314861561,1708599033176,-423.57,0.00035342,2]
[314861562,1708599033185,-685.25,0.00035342,2]
[314861563,1708599033195,-423.57,0.00035342,2]
[314861564,1708599033205,-150.0,0.00035342,2]
[314861565,1708599033215,-150.0,0.00035342,2]
[314861566,1708599033224,-423.57,0.00035342,2]
[314861567,1708599033233,-300.0,0.00035342,2]
[314861568,1708599033244,-851.66344248,0.00035344,8]
[314861569,1708599033253,-1156.0357762,0.00035352,2]
[314861570,1708599033262,-1018.29,0.00035443,2]
[314861571,1708599033272,-1107.68766401,0.00035465,2]
[314861572,1708599033282,-851.66344248,0.00035485,8]
[314861573,1708599033292,-151.022219,0.00035498,2]
[314861574,1708599033301,-151.022219,0.00035498,2]
[314861575,1708599033311,-151.022219,0.00035498,2]
[314861576,1708599033320,-151.022219,0.00035498,2]
[314861577,1708599033329,-151.022219,0.00035498,2]
[314861578,1708599033339,-12580.0,0.000355,2]
[314861579,1708599033348,-5000.0,0.000355,3]
[314861580,1708599033358,-156.9828334,0.000355,25]
[314861581,1708599033368,-174.10377238,0.00035515,2]
[314861582,1708599033378,-55555.0,0.00035516,3]
[314861583,1708599033388,-200.0,0.00035528,3]
[314861584,1708599033398,-155.0,0.00035532,2]
[314861585,1708599033408,-16089.431789,0.0003554,2]
[314861586,1708599033417,-362.59324051,0.00035561,2]
[314861587,1708599033687,-152.21040494,0.00035569,2]
[314861588,1708599033698,-273.17038603,0.00035577,7]
[314861589,1708599033708,-16458.979917,0.00035589,2]
[314861590,1708599033717,-575.29335002,0.0003559,2]
[314861591,1708599033726,-151.36783195,0.00035596,2]
[314861592,1708599033735,-150.0,0.00035599,30]
[314861593,1708599033743,-851020.26804729,0.000356,5]
[314861594,1708599033757,-2273.42940138,0.000356,5]
[314861596,1708599037682,-170928.83906286,0.000356,5]
[314861597,1708599037740,-300.6,0.000356,5]
[314861598,1708599037752,-30929.88128159,0.000356,5]
[314861599,1708599037799,-2377.87565013,0.000356,5]
[314861600,1708599037811,-1169.71145424,0.000356,5]
[314861618,1708599040208,-613.46221154,0.000356,5]
[314861619,1708599040299,-500.3583486,0.000356,5]
[314861620,1708599040311,-379.90042183,0.000356,5]
[314861621,1708599040403,-7364.30984218,0.000356,5]
[314861622,1708599040415,-428.00710736,0.000356,5]
[314861623,1708599040427,-381.88049996,0.000356,5]
[314861624,1708599040439,-584.06611843,0.000356,5]
[314861625,1708599040456,-539.33852782,0.000356,5]
[314861626,1708599040468,-350.55781886,0.000356,5]
[314861627,1708599040480,-4966.7063304,0.000356,5]
[314861628,1708599040492,-321.76073503,0.000356,5]
[314861629,1708599040504,-557.57111248,0.000356,5]
[314861630,1708599040516,-132542.52788515,0.000356,5]
[314861631,1708599040525,-151.0,0.000356,7]
[314861632,1708599040534,-151.0,0.000356,7]
[314861633,1708599040543,-151.0,0.000356,7]
[314861634,1708599040554,-151.0,0.000356,7]
[314861635,1708599040563,-151.0,0.000356,7]
[314861636,1708599040572,-3000.0,0.000356,24]
[314861637,1708599040582,-21411.02025088,0.000356,2]
[314861638,1708599040591,-1546.67291,0.000356,20]
[314861639,1708599040601,-151.0,0.000356,7]
[314861640,1708599040611,-151.0,0.000356,7]
[314861641,1708599040620,-151.0,0.000356,7]
[314861642,1708599040629,-1183.886657,0.000356,7]
[314861643,1708599040639,-2369.381539,0.000356,7]
[314861644,1708599040648,-1183.886657,0.000356,7]
[314861645,1708599040658,-151.0,0.000356,7]
[314861646,1708599040667,-2369.381539,0.000356,7]
[314861647,1708599040676,-151.0,0.000356,7]
[314861648,1708599040685,-156.631726,0.000356,7]
[314861649,1708599040694,-156.631726,0.000356,7]
[314861650,1708599040704,-398.3,0.000356,2]
[314861651,1708599040714,-151.0,0.000356,7]
[314861652,1708599040723,-605.488866,0.000356,7]
[314861653,1708599040732,-605.488866,0.000356,7]
[314861654,1708599040741,-150.0,0.000356,2]
[314861655,1708599040750,-150.0,0.000356,2]
[314861656,1708599040759,-800.0,0.00035602,2]
[314861657,1708599040769,-800.0,0.00035602,2]
[314861658,1708599040778,-200.0,0.00035603,3]
[314861659,1708599040787,-800.0,0.00035603,2]
[314861660,1708599040796,-800.0,0.00035603,2]
[314861661,1708599040805,-800.0,0.00035603,2]
[314861662,1708599040814,-200.0,0.00035603,10]
[314861663,1708599040823,-200.0,0.00035603,10]
[314861664,1708599040832,-3160.794524,0.0003561,24]
[314861665,1708599040842,-150.0,0.00035615,30]
[314861666,1708599040853,-150.0,0.00035615,30]
[314861667,1708599040863,-150.0,0.00035615,30]
[314861668,1708599040872,-150.0,0.00035615,30]
[314861669,1708599040881,-200.0,0.00035616,2]
[314861670,1708599040890,-200.0,0.00035616,2]
[314861671,1708599040900,-201.0,0.00035616,2]
[314861672,1708599040909,-500.0,0.00035616,2]
[314861673,1708599040918,-500.0,0.00035616,2]
[314861674,1708599040928,-555.63333832,0.00035616,2]
[314861675,1708599040937,-500.0,0.00035616,2]
[314861676,1708599040946,-500.0,0.00035616,2]
[314861677,1708599040955,-1023.5,0.00035616,2]
[314861678,1708599040964,-500.0,0.00035616,2]
[314861679,1708599040973,-500.0,0.00035616,2]
[314861680,1708599040983,-500.0,0.00035616,2]
[314861681,1708599040991,-500.0,0.00035616,2]
[314861682,1708599041000,-500.0,0.00035616,2]
[314861683,1708599041009,-516.24132484,0.00035616,2]
[314861684,1708599041019,-286.33743304,0.00035616,2]
[314861685,1708599041028,-500.0,0.00035616,2]
[314861686,1708599041037,-508.43176579,0.00035616,2]
[314861687,1708599041046,-606.73,0.00035616,2]
[314861688,1708599041055,-500.0,0.00035616,2]
[314861689,1708599041065,-500.0,0.00035616,2]
[314861690,1708599041074,-500.0,0.00035616,2]
[314861691,1708599041083,-500.0,0.00035616,2]
[314861692,1708599041093,-500.0,0.00035616,2]
[314861693,1708599041102,-500.0,0.00035616,2]
[314861694,1708599041111,-500.0,0.00035616,2]
[314861695,1708599041120,-633.33,0.00035616,2]
[314861696,1708599041129,-500.0,0.00035616,2]
[314861697,1708599041139,-500.0,0.00035616,2]
[314861698,1708599041148,-500.0,0.00035616,2]
[314861699,1708599041157,-500.0,0.00035616,2]
[314861700,1708599041166,-151.0,0.00035616,7]
[314861702,1708599041176,-500.0,0.00035616,2]
[314861703,1708599041185,-489.69345947,0.00035616,2]
[314861705,1708599041195,-151.0,0.00035616,7]
[314861706,1708599041205,-510.45954259,0.00035616,2]
[314861707,1708599041215,-151.0,0.00035616,7]
[314861708,1708599041224,-500.0,0.00035616,2]
[314861709,1708599041233,-500.0,0.00035616,2]
[314861710,1708599041242,-500.0,0.00035616,2]
[314861711,1708599041257,-429.45803795,0.00035616,2]
[314861712,1708599041266,-500.0,0.00035616,2]
[314861713,1708599041275,-607.65860422,0.00035616,2]
[314861714,1708599041284,-512.73,0.00035616,2]
[314861715,1708599041294,-500.0,0.00035616,2]
[314861716,1708599041304,-500.0,0.00035616,2]
[314861717,1708599041313,-151.0,0.00035616,7]
[314861718,1708599041323,-500.0,0.00035616,2]
[314861719,1708599041332,-500.0,0.00035616,2]
[314861720,1708599041341,-758.49,0.00035616,2]
[314861721,1708599041350,-500.0,0.00035616,2]
[314861722,1708599041360,-500.0,0.00035616,2]
[314861723,1708599041369,-500.0,0.00035616,2]
[314861724,1708599041378,-500.0,0.00035616,2]
[314861725,1708599041387,-500.0,0.00035616,2]
[314861726,1708599041396,-500.0,0.00035616,2]
[314861727,1708599041405,-500.0,0.00035616,2]
[314861728,1708599041414,-271.37417302,0.00035616,2]
[314861729,1708599041423,-381.94452696,0.00035616,2]
[314861730,1708599041432,-500.0,0.00035616,2]
[314861731,1708599041441,-500.0,0.00035616,2]
[314861732,1708599041450,-569.60693258,0.00035616,2]
[314861733,1708599041459,-500.0,0.00035616,2]
[314861734,1708599041471,-508.88,0.00035616,2]
[314861735,1708599041480,-623.89,0.00035616,2]
[314861736,1708599041489,-500.0,0.00035616,2]
[314861737,1708599041498,-500.0,0.00035616,2]
[314861738,1708599041507,-500.0,0.00035616,2]
[314861739,1708599041516,-151.0,0.00035616,7]
[314861740,1708599041525,-500.0,0.00035616,2]
[314861741,1708599041534,-306.75548979,0.00035616,2]
[314861742,1708599041543,-500.0,0.00035616,2]
[314861743,1708599041553,-520.1764164,0.00035616,2]
[314861744,1708599041562,-588.54420628,0.00035616,2]
[314861745,1708599041571,-500.0,0.00035616,2]
[314861746,1708599041581,-500.0,0.00035616,2]
[314861747,1708599041590,-500.0,0.00035616,2]
[314861748,1708599041599,-500.0,0.00035616,2]
[314861749,1708599041608,-213.804686,0.00035616,7]
[314861750,1708599041618,-500.0,0.00035616,2]
[314861751,1708599041627,-500.0,0.00035616,2]
[314861752,1708599041636,-500.0,0.00035616,2]
[314861753,1708599041645,-500.0,0.00035616,2]
[314861754,1708599041654,-500.0,0.00035616,2]
[314861755,1708599041663,-500.0,0.00035616,2]
[314861756,1708599041673,-500.0,0.00035616,2]
[314861757,1708599041682,-151.0,0.00035616,7]
[314861758,1708599041692,-500.0,0.00035616,2]
[314861759,1708599041700,-500.0,0.00035616,2]
[314861760,1708599041710,-500.0,0.00035616,2]
[314861761,1708599041720,-500.0,0.00035616,2]
[314861762,1708599041730,-500.0,0.00035616,2]
[314861763,1708599041739,-500.0,0.00035616,2]
[314861764,1708599041748,-500.0,0.00035616,2]
[314861765,1708599041757,-500.0,0.00035616,2]
[314861766,1708599041766,-500.0,0.00035616,2]
[314861767,1708599041775,-500.0,0.00035616,2]
[314861768,1708599041784,-500.0,0.00035616,2]
[314861769,1708599041793,-500.0,0.00035616,2]
[314861770,1708599041802,-500.0,0.00035616,2]
[314861771,1708599041811,-500.0,0.00035616,2]
[314861772,1708599041820,-597.93,0.00035616,2]
[314861773,1708599041830,-500.0,0.00035616,2]
[314861774,1708599041839,-500.0,0.00035616,2]
[314861775,1708599041848,-500.0,0.00035616,2]
[314861776,1708599041860,-500.0,0.00035616,2]
[314861777,1708599041869,-636.82865915,0.00035616,2]
[314861778,1708599041879,-500.0,0.00035616,2]
[314861779,1708599041888,-500.0,0.00035616,2]
[314861780,1708599041897,-500.0,0.00035616,2]
[314861781,1708599041907,-500.0,0.00035616,2]
[314861782,1708599041916,-500.9,0.00035616,2]
[314861783,1708599041925,-500.0,0.00035616,2]
[314861784,1708599041938,-500.0,0.00035616,2]
[314861785,1708599041947,-597.85,0.00035616,2]
[314861786,1708599041957,-500.0,0.00035616,2]
[314861787,1708599041968,-500.0,0.00035616,2]
[314861788,1708599041978,-500.0,0.00035616,2]
[314861789,1708599041987,-500.0,0.00035616,2]
[314861790,1708599041997,-500.0,0.00035616,2]
[314861791,1708599042006,-500.0,0.00035616,2]
[314861792,1708599042014,-500.0,0.00035616,2]
[314861793,1708599042024,-500.0,0.00035616,2]
[314861794,1708599042033,-616.62218161,0.00035616,2]
[314861795,1708599042042,-500.0,0.00035616,2]
[314861796,1708599042052,-455.41715357,0.00035616,2]
[314861797,1708599042061,-502.81,0.00035616,2]
[314861798,1708599042070,-500.0,0.00035616,2]
[314861799,1708599042079,-500.0,0.00035616,2]
[314861800,1708599042088,-500.0,0.00035616,2]
[314861801,1708599042098,-151.0,0.00035616,7]
[314861802,1708599042107,-542.78,0.00035616,2]
[314861803,1708599042116,-500.0,0.00035616,2]
[314861804,1708599042126,-500.0,0.00035616,2]
[314861805,1708599042135,-500.0,0.00035616,2]
[314861806,1708599042144,-500.0,0.00035616,2]
[314861807,1708599042154,-519.13627683,0.00035616,2]
[314861808,1708599042163,-500.0,0.00035616,2]
[314861809,1708599042172,-500.0,0.00035616,2]
[314861810,1708599042181,-500.0,0.00035616,2]
[314861811,1708599042191,-500.0,0.00035616,2]
[314861812,1708599042200,-500.0,0.00035616,2]
[314861813,1708599042210,-500.0,0.00035616,2]
[314861814,1708599042219,-759.35,0.00035616,2]
[314861815,1708599042229,-500.0,0.00035616,2]
[314861816,1708599042238,-751.66,0.00035616,2]
[314861817,1708599042248,-500.0,0.00035616,2]
[314861818,1708599042257,-500.0,0.00035616,2]
[314861819,1708599042266,-604.74,0.00035616,2]
[314861820,1708599042275,-735.52,0.00035616,2]
[314861821,1708599042285,-500.0,0.00035616,2]
[314861822,1708599042294,-500.0,0.00035616,2]
[314861823,1708599042303,-500.0,0.00035616,2]
[314861824,1708599042312,-500.0,0.00035616,2]
[314861825,1708599042321,-250.251687,0.00035616,7]
[314861826,1708599042330,-151.0,0.00035616,7]
[314861827,1708599042339,-500.0,0.00035616,2]
[314861828,1708599042349,-500.0,0.00035616,2]
[314861829,1708599042357,-500.0,0.00035616,2]
[314861830,1708599042366,-500.0,0.00035616,2]
[314861831,1708599042375,-500.0,0.00035616,2]
[314861832,1708599042384,-524.91,0.00035616,2]
[314861833,1708599042393,-642.65095322,0.00035616,2]
[314861834,1708599042402,-500.0,0.00035616,2]
[314861835,1708599042412,-509.21,0.00035616,2]
[314861836,1708599042421,-1201.42,0.00035616,2]
[314861837,1708599042430,-500.0,0.00035616,2]
[314861838,1708599042439,-500.0,0.00035616,2]
[314861839,1708599042449,-500.0,0.00035616,2]
[314861840,1708599042458,-500.0,0.00035616,2]
[314861841,1708599042469,-500.0,0.00035616,2]
[314861842,1708599042479,-500.0,0.00035616,2]
[314861843,1708599042488,-500.0,0.00035616,2]
[314861844,1708599042497,-500.0,0.00035616,2]
[314861845,1708599042506,-151.0,0.00035616,7]
[314861846,1708599042516,-151.0,0.00035616,7]
[314861847,1708599042525,-1056.83,0.00035616,2]
[314861848,1708599042534,-500.0,0.00035616,2]
[314861849,1708599042543,-500.0,0.00035616,2]
[314861850,1708599042553,-576.05,0.00035616,2]
[314861851,1708599042562,-500.0,0.00035616,2]
[314861852,1708599042570,-151.0,0.00035616,7]
[314861853,1708599042579,-500.0,0.00035616,2]
[314861854,1708599042588,-500.0,0.00035616,2]
[314861855,1708599042597,-1599.53,0.00035616,2]
[314861856,1708599042606,-865.87,0.00035616,2]
[314861857,1708599042616,-500.0,0.00035616,2]
[314861858,1708599042625,-500.0,0.00035616,2]
[314861859,1708599042634,-500.0,0.00035616,2]
[314861860,1708599042644,-618.05587429,0.00035616,2]
[314861861,1708599042654,-500.0,0.00035616,2]
[314861863,1708599042663,-929.15,0.00035616,2]
[314861865,1708599042672,-580.51,0.00035616,2]
[314861867,1708599042682,-500.0,0.00035616,2]
[314861869,1708599042691,-500.0,0.00035616,2]
[314861871,1708599042700,-151.0,0.00035616,7]
[314861873,1708599042710,-500.0,0.00035616,2]
[314861874,1708599042720,-1572.34,0.00035616,2]
[314861877,1708599042730,-1108.67,0.00035616,2]
[314861879,1708599042739,-406.854046,0.00035616,7]
[314861881,1708599042748,-500.0,0.00035616,2]
[314861883,1708599042758,-902.58,0.00035616,2]
[314861885,1708599042767,-714.35,0.00035616,2]
[314861886,1708599042776,-406.854046,0.00035616,7]
[314861888,1708599042785,-500.0,0.00035616,2]
[314861890,1708599042794,-500.0,0.00035616,2]
[314861891,1708599042804,-500.0,0.00035616,2]
[314861892,1708599042813,-500.0,0.00035616,2]
[314861893,1708599042822,-561.03,0.00035616,2]
[314861894,1708599042832,-311.994668,0.00035616,7]
[314861895,1708599042840,-612.0,0.00035616,2]
[314861896,1708599042849,-151.0,0.00035616,7]
[314861897,1708599042862,-500.0,0.00035616,2]
[314861898,1708599042871,-500.0,0.00035616,2]
[314861899,1708599042881,-500.0,0.00035616,2]
[314861900,1708599042890,-311.994668,0.00035616,7]
[314861901,1708599042900,-500.0,0.00035616,2]
[314861902,1708599042909,-577.1702473,0.00035616,2]
[314861903,1708599042918,-707.58,0.00035616,2]
[314861904,1708599042927,-500.0,0.00035616,2]
[314861905,1708599042937,-500.0,0.00035616,2]
[314861906,1708599042946,-151.0,0.00035616,7]
[314861907,1708599042956,-570.83,0.00035616,2]
[314861908,1708599042966,-1212.38,0.00035616,2]
[314861909,1708599042975,-537.65,0.00035616,2]
[314861910,1708599042984,-504.29000939,0.00035616,2]
[314861911,1708599042993,-508.31,0.00035616,2]
[314861912,1708599043002,-250.045809,0.00035616,7]
[314861913,1708599043012,-516.84,0.00035616,2]
[314861914,1708599043021,-500.0,0.00035616,2]
[314861915,1708599043030,-500.0,0.00035616,2]
[314861916,1708599043039,-250.045809,0.00035616,7]
[314861917,1708599043048,-151.0,0.00035616,7]
[314861918,1708599043058,-500.0,0.00035616,2]
[314861919,1708599043067,-849.03,0.00035616,2]
[314861920,1708599043076,-500.0,0.00035616,2]
[314861922,1708599043086,-500.0,0.00035616,2]
[314861924,1708599043095,-927.1,0.00035616,2]
[314861926,1708599043104,-500.0,0.00035616,2]
[314861928,1708599043113,-500.0,0.00035616,2]
[314861930,1708599043122,-618.53,0.00035616,2]
[314861932,1708599043131,-870.62,0.00035616,2]
[314861933,1708599043141,-151.0,0.00035616,7]
[314861935,1708599043150,-600.6937328,0.00035616,2]
[314861937,1708599043159,-621.76,0.00035616,2]
[314861940,1708599043169,-500.0,0.00035616,2]
[314861942,1708599043178,-151.0,0.00035616,7]
[314861944,1708599043188,-797.24,0.00035616,2]
[314861946,1708599043197,-250.0,0.00035616,2]
[314861947,1708599043206,-151.0,0.00035616,7]
[314861949,1708599043217,-500.0,0.00035616,2]
[314861952,1708599043227,-151.0,0.00035616,7]
[314861953,1708599043236,-580.37,0.00035616,2]
[314861955,1708599043246,-500.0,0.00035616,2]
[314861957,1708599043256,-699.91,0.00035616,2]
[314861959,1708599043266,-972.92,0.00035616,2]
[314861961,1708599043275,-752.75,0.00035616,2]
[314861964,1708599043285,-500.0,0.00035616,2]
[314861967,1708599043294,-323.233825,0.00035616,7]
[314861970,1708599043303,-500.0,0.00035616,2]
[314861972,1708599043312,-556.13,0.00035616,2]
[314861974,1708599043321,-623.71,0.00035616,2]
[314861976,1708599043331,-323.233825,0.00035616,7]
[314861978,1708599043340,-500.0,0.00035616,2]
[314861980,1708599043349,-500.0,0.00035616,2]
[314861982,1708599043358,-500.29,0.00035616,2]
[314861984,1708599043368,-500.0,0.00035616,2]
[314861986,1708599043377,-500.0,0.00035616,2]
[314861988,1708599043386,-151.0,0.00035616,7]
[314861990,1708599043396,-558.05193804,0.00035616,2]
[314861992,1708599043405,-500.0,0.00035616,2]
[314861994,1708599043414,-500.0,0.00035616,2]
[314861996,1708599043423,-500.0,0.00035616,2]
[314861998,1708599043432,-500.0,0.00035616,2]
[314862000,1708599043442,-800.76,0.00035616,2]
[314862002,1708599043451,-1018.645365,0.00035616,7]
[314862004,1708599043460,-500.0,0.00035616,2]
[314862006,1708599043473,-500.0,0.00035616,2]
[314862008,1708599043483,-1018.645365,0.00035616,7]
[314862010,1708599043492,-500.0,0.00035616,2]
[314862012,1708599043501,-500.0,0.00035616,2]
[314862014,1708599043510,-671.41,0.00035616,2]
[314862016,1708599043519,-608.12,0.00035616,2]
[314862017,1708599043529,-151.0,0.00035616,7]
[314862018,1708599043537,-500.0,0.00035616,2]
[314862019,1708599043547,-851.29,0.00035616,2]
[314862020,1708599043556,-500.0,0.00035616,2]
[314862021,1708599043565,-500.0,0.00035616,2]
[314862022,1708599043574,-669.25,0.00035616,2]
[314862023,1708599043584,-847.94,0.00035616,2]
[314862024,1708599043593,-500.0,0.00035616,2]
[314862025,1708599043602,-500.0,0.00035616,2]
[314862026,1708599043611,-500.0,0.00035616,2]
[314862027,1708599043620,-500.0,0.00035616,2]
[314862028,1708599043629,-500.0,0.00035616,2]
[314862029,1708599043639,-651.7,0.00035616,2]
[314862030,1708599043648,-512.75703474,0.00035616,2]
[314862031,1708599043658,-500.0,0.00035616,2]
[314862032,1708599043667,-893.69,0.00035616,2]
[314862033,1708599043681,-582.82,0.00035616,2]
[314862034,1708599043690,-754.19,0.00035616,2]
[314862035,1708599043699,-151.0,0.00035616,7]
[314862036,1708599043708,-305.93775724,0.00035616,30]
[314862037,1708599043720,-151.0,0.00035616,7]
[314862038,1708599043729,-846.42,0.00035616,2]
[314862039,1708599043739,-500.0,0.00035616,2]
[314862040,1708599043748,-151.0,0.00035616,7]
[314862041,1708599043758,-500.0,0.00035616,2]
[314862042,1708599043767,-1085.51921133,0.00035616,7]
[314862043,1708599043776,-151.0,0.00035616,7]
[314862044,1708599043786,-698.07,0.00035616,2]
[314862045,1708599043795,-606.1,0.00035616,2]
[314862046,1708599043804,-151.0,0.00035616,7]